Cogmind - Beta 14 @@@ ROGUE MODE // 2024.10.24 @ 02:57:24 Player: muppy Result: Destroyed by as-47292 with Assembled Rifle Performance ------------- Evolutions (1) 500 Regions Visited (3) 600 Robots Destroyed (23) 115 Value Destroyed (732) 732 Prototype IDs (1) 20 Alien Tech Used (0) 0 Bonus (0) 0 TOTAL SCORE: 1967 Bonus ------- None Cogmind --------- Core Integrity 0/400 Matter 296/300 Energy 100/100 System Corruption 4% Temperature Cool (0) Movement Core (50) Location -9/Mines Parts ------- > --- POWER (1) -------- (None) > --- PROPULSION (3) --- (None) > --- UTILITY (3) ------ Visual Processing Unit > --- WEAPON (2) ------- (None) > --- INVENTORY (5) ---- (None) Peak State ------------ > --- POWER ------------ Improved Ion Engine > --- PROPULSION ------- Light Treads Light Treads Light Treads > --- UTILITY ---------- Visual Processing Unit Improved Targeting Computer Light Armor Plating > --- WEAPON ----------- Heavy Assault Rifle Heavy Assault Rifle > --- INVENTORY -------- (None) [Rating: 14] Favorites ----------- Power Improved Ion Engine Engine Improved Ion Engine Propulsion Light Treads Treads Light Treads Leg Aluminum Leg Wheel Wheel Flight Unit Flight Unit Utility Visual Processing Unit Device Terrain Scanner Processor Visual Processing Unit Protection Light Armor Plating Weapon Heavy Assault Rifle Ballistic Gun Heavy Assault Rifle Launcher Grenade Launcher Build | -11 -10 -9 -9 ------- Run | Yrd Mat Mat Min Slots Evolved 2 | . . 2 . Power . | . . . . Propulsion 1 | . . 1 . Utility 1 | . . 1 . Weapon . | . . . . Parts Attached 42 | 7 1 25 9 Power 7 | 1 . 5 1 Engine 7 | 1 . 5 1 Core . | . . . . Reactor . | . . . . Propulsion 16 | 4 . 10 2 Treads 7 | . . 5 2 Leg 2 | 2 . . . Wheel 4 | 2 . 2 . Hover . | . . . . Flight 3 | . . 3 . Utility 7 | . . 4 3 Device 1 | . . 1 . Storage . | . . . . Processor 3 | . . 2 1 Hackware . | . . . . Protection 3 | . . 1 2 Artifact . | . . . . Weapon 12 | 2 1 6 3 Energy Gun . | . . . . Energy Cannon . | . . . . Ballistic Gun 9 | 2 . 5 2 Ballistic Cannon . | . . . . Launcher 3 | . 1 1 1 Special Weapon . | . . . . Impact Weapon . | . . . . Slashing Weapon . | . . . . Piercing Weapon . | . . . . Special Melee Weapon . | . . . . Unidentified Prototypes 1 | . . 1 . Parts Lost 19 | . . 7 12 Power 3 | . . 1 2 Propulsion 5 | . . 3 2 Utility 5 | . . 1 4 Weapon 6 | . . 2 4 Highest Loss Streak 11 | . . 4 11 To Critical Strikes . | . . . . Average Slot Usage (%) 80 | . 71 80 84 Engine 10 | . 14 10 9 Treads 19 | . . 18 28 Wheel 4 | . 28 2 . Flight 2 | . . 5 . Processor 10 | . . 12 11 Protection 9 | . . 7 15 Ballistic Gun 19 | . 15 20 18 Launcher 2 | . 12 1 . Peak Build Rating 14 | 5 5 13 14 Average Rating 9 | 3 5 10 11 On Entrance 5 | . 5 5 11 Naked Turns . | . . . . Heaviest Build 17 | 6 8 16 17 Greatest Support 60 | 20 20 60 60 Greatest Overweight (x) 2 | . . 2 . Average Overweight (x) . | . . . . Largest Inventory Capacity 5 | 5 5 5 5 Average Capacity 5 | 5 5 5 5 Most Carried 5 | 3 2 5 5 Average Carried 3 | . 1 3 4 Final Capacity 5 | 5 5 5 5 Final Carried 5 | 1 2 5 . Class Distribution -------------------- 67% | Scavenger-Mutant 32% | Mutant Dominant Class ---------------- Mutant | -10/Materials Scavenger-Mutant | -9/Materials Scavenger-Mutant | -9/Mines Resources | -11 -10 -9 -9 ----------- Run | Yrd Mat Mat Min Matter Collected 887 | 234 58 413 182 Remotely . | . . . . Salvage Created 1022 | . 58 710 254 Parts 54 | . 3 40 11 Haulers Intercepted . | . . . . Recyclers Shooed . | . . . . Parts Field Recycled . | . . . . Retrieved Matter . | . . . . Parts Self-Destructed . | . . . . Prevented . | . . . . Kills | -11 -10 -9 -9 ------- Run | Yrd Mat Mat Min Combat Hostiles Destroyed 29 | . 2 15 12 Melee 1 | . . . 1 Guns 23 | . 1 14 8 AOE 5 | . 1 1 3 Classes Destroyed 7 | . 1 4 2 Recycler 2 | . . 1 1 Watcher 1 | . . 1 . Swarmer 4 | . . 4 . Grunt 7 | . 2 5 . Sentry 8 | . . 6 2 Demolisher 1 | . . . 1 Assembled 9 | . . . 9 Best Kill Streak 6 | . 2 5 6 Combat Bots Only 6 | . 2 4 6 Max Kills in Single Turn 3 | . 1 1 3 Gunslinging 1 | . . . 1 Exploded 3 | . 1 1 3 Melee 1 | . . . 1 Uniques/NPCs Destroyed . | . . . . Combat | -11 -10 -9 -9 -------- Run | Yrd Mat Mat Min Hostile Shots Fired 206 | . 15 99 92 Missed 63 | . 6 28 29 Damage Taken 2258 | . 107 858 1293 Core 454 | . 43 171 240 Absorbed by Shields . | . . . . Redirected to Shielding 57 | . . . 57 Core Remaining (%) 91 | 100 82 . . Volleys Fired 86 | . 12 45 29 Largest 2 | . 2 2 2 Hottest 53 | . 50 50 53 Shots Fired 145 | . 13 83 49 Gun 142 | . 12 82 48 Cannon . | . . . . Launcher 3 | . 1 1 1 Special . | . . . . Kinetic 142 | . 12 82 48 Thermal . | . . . . Explosive 3 | . 1 1 1 Electromagnetic . | . . . . Robot Hit Streak 16 | . 5 16 8 Robot Miss Streak 5 | . 1 3 5 Penetration Max . | . . . . Secondary Targets 5 | . . 2 3 Max Gunslinging Chain 1 | . . 1 1 Shots Hit Robots 98 | . 9 57 32 Core Hits 57 | . 3 31 23 Critical Kills . | . . . . Critical Parts Destroyed . | . . . . Critical Strikes . | . . . . Melee Attacks . | . . . . Impact . | . . . . Slashing . | . . . . Piercing . | . . . . Sneak Attacks . | . . . . Combat Hostiles . | . . . . Follow-up Attacks . | . . . . Damage Inflicted 1435 | . 178 650 607 Guns 1240 | . 105 617 518 Cannons . | . . . . Explosions 187 | . 73 33 81 Melee . | . . . . Ramming 8 | . . . 8 Kinetic 1240 | . 105 617 518 Thermal . | . . . . Explosive 187 | . 73 33 81 Electromagnetic . | . . . . Impact . | . . . . Slashing . | . . . . Piercing . | . . . . Highest Corruption 4 | . . . 4 Average Corruption 4 | . . . 4 Corruption Purged . | . . . . Corruption Blocked . | . . . . Overload Shots . | . . . . Overflow Damage . | . . . . Projectiles . | . . . . Explosions . | . . . . Melee . | . . . . Knockbacks . | . . . . Impact . | . . . . Kinetic . | . . . . Secondary . | . . . . Self-Inflicted Damage . | . . . . Shots . | . . . . Rammed 5 | . . . 5 Targets Rammed 7 | . . . 7 Kicked . | . . . . Crushed 2 | . . . 2 Highest Temperature 38 | . 7 38 32 Average Temperature 10 | . 4 11 10 Received Heat Transfer 717 | . 75 279 363 Siege Activations . | . . . . Robots Corrupted . | . . . . Combat Hostiles . | . . . . Parts Fried . | . . . . Impact Corruptions . | . . . . Robots Melted . | . . . . Combat Hostiles . | . . . . Parts Melted . | . . . . Heat Transferred . | . . . . Parts Sabotaged . | . . . . Parts Stolen . | . . . . Parts Stripped . | . . . . Power Chain Reactions . | . . . . Alert | -11 -10 -9 -9 ------- Run | Yrd Mat Mat Min Peak Influence 244 | . 68 244 111 Initial 51 | . . 28 51 Average 107 | . 34 140 94 Maximum Alert Level 1 | . . 1 . Low Security (%) 96 | 100 100 93 100 Level 1 3 | . . 6 . Level 2 . | . . . . Level 3 . | . . . . Level 4 . | . . . . Level 5 . | . . . . High Security . | . . . . Max Security . | . . . . Squads Dispatched 2 | . 1 1 . Investigation 1 | . 1 . . Extermination . | . . . . Reinforcement 1 | . . 1 . Assault . | . . . . Garrison . | . . . . Intercept . | . . . . Searches Triggered . | . . . . Construction Impeded . | . . . . Haulers Reinforced . | . . . . Active Scanning Responses . | . . . . Cargo Convoy Interrupts . | . . . . Stealth | -11 -10 -9 -9 --------- Run | Yrd Mat Mat Min Distress Signals . | . . . . Communications Jammed . | . . . . Distress Signals . | . . . . Times Spotted 49 | . 4 21 24 Peak Tracking Total 10 | . 3 5 10 Tactical Retreats . | . . . . Traps | -11 -10 -9 -9 ------- Run | Yrd Mat Mat Min Traps Triggered 2 | . 1 1 . Indirectly . | . . . . Trap Hack Attempts . | . . . . Triggered . | . . . . Disarmed . | . . . . Reprogrammed . | . . . . Reused . | . . . . Traps Extracted . | . . . . Installed . | . . . . Triggered . | . . . . Machines | -11 -10 -9 -9 ---------- Run | Yrd Mat Mat Min Machines Disabled . | . . . . Max in Single Turn . | . . . . Machines Repaired . | . . . . Machines Dismantled . | . . . . Machines Sabotaged . | . . . . Overloaded Fab Kills . | . . . . Hacking | -11 -10 -9 -9 --------- Run | Yrd Mat Mat Min Machines Accessed 2 | . 1 1 . Terminals 2 | . 1 1 . Fabricators . | . . . . Repair Stations . | . . . . Recycling Units . | . . . . Scanalyzers . | . . . . Garrison Access . | . . . . Total Hacks 6 | . 2 4 . Successful 4 | . 2 2 . Failed 2 | . . 2 . Catastrophic . | . . . . Database Lockouts . | . . . . Manual 1 | . 1 . . Terminals 6 | . 2 4 . Fabricators . | . . . . Repair Stations . | . . . . Recycling Units . | . . . . Scanalyzers . | . . . . Garrison Access . | . . . . Terminal Hacks 4 | . 2 2 . Alert Level 1 | . . 1 . Unreport Threat 1 | . . 1 . Transport Status 1 | . 1 . . Hauler Manifests 1 | . 1 . . Fabricator Hacks . | . . . . Repair Station Hacks . | . . . . Recycling Unit Hacks . | . . . . Scanalyzer . | . . . . Garrison Access Hacks . | . . . . Unauthorized Hacks . | . . . . Terminals . | . . . . Fabricators . | . . . . Repair Stations . | . . . . Recycling Units . | . . . . Scanalyzers . | . . . . Garrison Access . | . . . . Data Cores Recovered . | . . . . Used . | . . . . Hacking Detections 1 | . . 1 . Full Trace Events . | . . . . Feedback Events . | . . . . Feedback Blocked . | . . . . Robot Schematics Acquired . | . . . . Robots Built . | . . . . Authchips . | . . . . Time . | . . . . Total Robot Build Rating . | . . . . Part Schematics Acquired . | . . . . Parts Built . | . . . . Authchips . | . . . . Time . | . . . . Total Part Build Rating . | . . . . Parts Repaired . | . . . . Time . | . . . . Parts Recycled . | . . . . Recycled Matter . | . . . . Retrieved Matter . | . . . . Retrieved Components . | . . . . Parts Scanalyzed . | . . . . Part Schematics Acquired . | . . . . Parts Damaged . | . . . . Bothacking | -11 -10 -9 -9 ------------ Run | Yrd Mat Mat Min Used RIF Installer . | . . . . Robots Hacked . | . . . . Non-combat . | . . . . Combat . | . . . . Robot Hacks Applied . | . . . . Relay Couplers Released . | . . . . Fabnet Peak Effective % . | . . . . Robots Rewired . | . . . . Allies Hacked . | . . . . Hacks Repelled . | . . . . Allies | -11 -10 -9 -9 -------- Run | Yrd Mat Mat Min Total Allies . | . . . . Largest Group . | . . . . Highest-Rated Group . | . . . . Highest-Rated Ally . | . . . . Total Orders . | . . . . Ally Attacks . | . . . . Total Damage . | . . . . Kills . | . . . . Allies Corrupted . | . . . . Allies Melted . | . . . . Intel | -11 -10 -9 -9 ------- Run | Yrd Mat Mat Min Robot Analysis Total . | . . . . Derelict Logs Recovered . | . . . . Drone Launches . | . . . . Drone Recoveries . | . . . . Exploration | -11 -10 -9 -9 ------------- Run | Yrd Mat Mat Min Turns Passed 1330 | 54 150 693 433 Spaces Moved 800 | 46 152 394 208 Core 18 | 12 . . 6 Treads 460 | . . 258 202 Legs 3 | 3 . . . Wheels 266 | 31 152 83 . Hover . | . . . . Flight 53 | . . 53 . Fastest Speed 34 | 50 80 34 50 Average Speed 124 | 74 80 130 156 Slowest Speed 200 | 120 80 200 160 Overloaded Moves . | . . . . Propulsion Burnouts . | . . . . Robots Hopped . | . . . . Cave-ins Triggered . | . . . . Exploration Rate (%) 32 | 4 27 43 56 Regions Visited 3 Branch Regions 1 Pre-discovered Areas . | . . . . Known Exits Taken . | . . . . Unknown Exits Taken 3 | 1 1 1 . Scrap Searched . | . . . . Spaces Dug . | . . . . Terrain Destroyed 23 | . 6 9 8 Melee . | . . . . Projectile . | . . . . AOE 23 | . 6 9 8 Terrain Rammed . | . . . . Walls Destroyed . | . . . . Machines Disabled . | . . . . Actions | -11 -10 -9 -9 --------- Run | Yrd Mat Mat Min Total 996 | 66 166 501 263 Wait 12 | 4 1 7 . Move 797 | 45 151 393 208 Hop . | . . . . Pick Up 37 | 8 1 22 6 Fast Attach . | . . . . Attach 32 | 7 . 18 7 Detach 1 | . . 1 . Swap 10 | . 1 7 2 Drop 14 | 2 . 8 4 Fire 86 | . 12 45 29 Melee . | . . . . Ram . | . . . . Kick . | . . . . Crush 7 | . . . 7 Escape Stasis . | . . . . Rewire . | . . . . Trap . | . . . . Miscellaneous . | . . . . Route ------- -11/Scrapyard -10/Materials -9/Materials (discovered 2 exits: [*Mat] / [*Min]) -9/Mines History --------- Turn | Location | Event 4 | -11/Scrapyard | Discovered new exit (range 15) 55 | -11/Scrapyard | Entered Materials 167 | -10/Materials | Discovered new exit (range 4) 205 | -10/Materials | Entered another Materials area 205 | -9/Materials | Evolved 2 slots: Propulsion x1, Utility x1 317 | -9/Materials | Build established: Mutant 410 | -9/Materials | Lost 4 parts (2n2w) 704 | -9/Materials | Build established: Scavenger-Mutant 777 | -9/Materials | Discovered new exit (range 16) 879 | -9/Materials | Discovered new exit (range 12) 898 | -9/Materials | Entered Mines 912 | -9/Mines | Core integrity fell below 50% 978 | -9/Mines | YI-UF0 nonchalantly dropped a Grenade Launcher on the ground 1190 | -9/Mines | Assembled infested the area 1195 | -9/Mines | Assisted by a Guerilla fighting off Assembled 1292 | -9/Mines | Core integrity fell below 20% 1328 | -9/Mines | Lost 11 parts (2p1n4u4w) 1331 | -9/Mines | Destroyed by as-47292 with Assembled Rifle Last Messages --------------- Lgt. Armor Plating destroyed. U-05 Engineer builds a Wall. as-01050 destroyed. Lgt. Treads destroyed. U-05 Engineer lays Concrete. U-05 Engineer builds a Wall. as-69011 sneak attacks. K-01 Serf destroyed. Hvy. Assault Rifle destroyed. Crushed as-23402. as-23402 destroyed. Slammed into as-47292. U-05 Engineer knocked back. Acquired 19 matter. Imp. Ion Engine destroyed. Slammed into as-47292. Acquired 26 matter. Acquired 27 matter. Lgt. Treads destroyed. Critical hit (Burn: +80). Map ----- +----------------------------------------------------+ | ?????????# ## ##### ####???# | | ?????????# ## ####??# | | ??????????# !!# ## ### | | ??????????## ######%# # % | | ?????? ???###=### ## | | ?????# ????# # % %%#????? | | ?????# ###### ?????# # # ! #?????? | | ????????????## ??????# # # # ###?????? | | ?????????????#???????# ## ## #???????? | | ?????????????????????# ## # ###???????? | | ?????????????????????#### ####?????????? | | ??????????????????????### # #??????????? | | ??????????????????###### ##??????????? | | ?????????????????## ## ##???????????? | | ?????????????????# ##=###???????????? | | ????????????????## ## #???????????? | | ????????????##### ### #???????????? | | ???????????## ### #???????????? | | ???????????# < = ## #???????????? | | ???????????#% aa ! = #???????????? | | ???????????## #### * #?????? | | ????????????## #??#### ###?????? | | ?????????????# ##????## #####???????? | | ?????????????# #?????#####???????????? | | ?????????????# #?????????????????????? | | ?????????????# @ #?????????????????????? | | ?????????????# #????????????????????? | | ?????????????# #????????????????????? | | ?????????????## ####????????????????????? | | ??????????????###????????????????????????? | | ?????????????????????????????????????????? | | ?????????????????????????????????????????? | | | | | | | | | | | | | | | | | | | | | | | | | | | | | | | | | | | | | +----------------------------------------------------+ Best States ------------- Heat Dissipation 28 Energy Generation 14 Energy Capacity 280 Matter Stores 300 Matter Capacity 300 Sight Range 18 Terrain Scan Range 14 Terrain Scan Density 10 Armor Coverage 150 Propulsion Shielding 33 Evasion (%) 62 Targeting Accuracy 6 Recoil Reduction 3 Item Schematics ----------------- None Robot Schematics ------------------ None Fabricated ------------ Nothing Alien Tech Used ----------------- None Achievements -------------- Everything Is Under Control Challenges ------------ None Game ------ Seed LaserVariableSuperbattery Manual? 0 Play Time 00:17:18 Cumulative 4.1 hours Start 2024.10.24 @ 02:40:46 End 2024.10.24 @ 02:57:24 Sessions 1 Manual Loads 0 Difficulty Rogue Special Mode None Game No. 11 Rogue 11 Adventurer 0 Explorer 0 Win Type - Total 0 Types 0/0/0/0/0/0/0/0/0 Lore% 3 Gallery% 9 Achievement% 11 Wizard Run 0 Options --------- Layout 1 ASCII 0 Keyboard 0 Movement Mouse Keybinds 0 Fullscreen 1 Font 48/SmallcapsGlow++ Map View 50x35 Zoom Use 0% Tactical HUD 0 Map Filters NONE Filters NONE Steam 1 RUN: 68bffc49-0938-4fff-80f3-b9b8ae1180a8